bitfinex-derivatives/quotes_BTCF0:USTF0_20251103
["timestamp","ask_amount","ask_price","bid_price","bid_amount"]
[1762169207008,0.29572991,107580.0,107570.0,0.4638603]
[1762169208210,0.38870151,107580.0,107570.0,0.4638603]
[1762169208506,0.18155402,107580.0,107570.0,0.4638603]
[1762169208807,0.05569,107590.0,107580.0,0.1030516]
[1762169209000,0.1792677,107590.0,107580.0,0.4638516]
[1762169209203,0.2722307,107590.0,107580.0,0.4638516]
[1762169210101,0.39140659,107590.0,107580.0,0.3608]
[1762169211410,0.39140659,107590.0,107580.0,0.4537717]
[1762169212011,0.39140659,107590.0,107580.0,0.3608]
[1762169213113,0.1490117,107580.0,107570.0,0.4638532]
[1762169213308,0.37736348,107580.0,107570.0,0.4638532]
[1762169214211,0.37736348,107580.0,107570.0,0.5304442]
[1762169215206,0.37736348,107580.0,107570.0,0.4638532]
[1762169216912,0.69916348,107580.0,107570.0,0.4638532]
[1762169218102,0.70216348,107580.0,107570.0,0.4638532]
[1762169218304,0.70416348,107580.0,107570.0,0.4638532]
[1762169220514,0.38284,107580.0,107570.0,0.4638532]
[1762169220817,0.61119178,107580.0,107570.0,0.4638532]
[1762169221017,0.49701589,107580.0,107570.0,0.4638532]
[1762169221518,0.58998749,107580.0,107570.0,0.4638532]
[1762169221719,0.70416338,107580.0,107570.0,0.4638532]
[1762169222018,0.37936338,107580.0,107570.0,0.4638532]
[1762169222413,0.37736338,107580.0,107570.0,0.37088]
[1762169222613,0.37736338,107580.0,107570.0,0.4638602]
[1762169222819,0.28439178,107580.0,107570.0,0.4638602]
[1762169223027,0.37736338,107580.0,107570.0,0.4638602]
[1762169224323,0.37736338,107580.0,107570.0,0.3608]
[1762169224821,0.37736338,107580.0,107560.0,0.3608]
[1762169224822,0.1490202,107570.0,107560.0,0.3608]
[1762169225016,0.1490289,107560.0,107550.0,0.5203805]
[1762169225224,0.37738068,107560.0,107550.0,0.4537895]
[1762169225725,0.37738068,107560.0,107550.0,0.4588295]
[1762169226616,0.28439178,107560.0,107550.0,0.4638695]
[1762169226810,0.17021589,107560.0,107550.0,0.4638695]
[1762169227611,0.17021589,107560.0,107550.0,0.7856295]
[1762169228625,0.14846589,107560.0,107550.0,0.7856295]
[1762169229930,0.14846589,107560.0,107550.0,0.7866295]
[1762169230315,0.14846589,107560.0,107550.0,0.7896295]
[1762169231027,0.17021589,107560.0,107550.0,0.7896295]
[1762169231525,0.17021589,107560.0,107550.0,0.37488]
[1762169231526,0.26320469,107560.0,107550.0,0.37488]
[1762169231723,0.26320469,107560.0,107550.0,0.69664]
[1762169231919,0.26320469,107560.0,107550.0,0.37488]
[1762169232119,0.37738058,107560.0,107550.0,0.3648]
[1762169232530,0.37738058,107560.0,107550.0,0.3638]
[1762169233325,0.37738058,107560.0,107550.0,0.4537975]
[1762169233828,0.37738058,107560.0,107550.0,0.3608]
[1762169234726,0.37738058,107560.0,107550.0,0.4537975]
[1762169235423,0.1490288,107560.0,107550.0,0.4638775]
[1762169235630,0.26320469,107560.0,107550.0,0.4638775]
[1762169236631,0.17021589,107560.0,107550.0,0.4638775]
[1762169239939,0.26320469,107560.0,107550.0,0.4638775]
[1762169241649,0.17021589,107560.0,107550.0,0.4638775]
[1762169241848,0.26320469,107560.0,107550.0,0.4638775]
[1762169242950,0.17021589,107560.0,107550.0,0.4638775]
[1762169244350,0.14846589,107560.0,107550.0,0.4638775]
[1762169245145,0.12717589,107560.0,107550.0,0.4638775]
[1762169245650,0.14960589,107560.0,107550.0,0.4638775]
[1762169245852,0.14960589,107560.0,107550.0,0.4668775]
[1762169246744,0.17168589,107560.0,107550.0,0.4638775]
[1762169247147,0.26467469,107560.0,107550.0,0.4638775]
[1762169247847,0.26467469,107560.0,107550.0,0.37088]
[1762169248048,0.26467469,107560.0,107550.0,0.4638775]
[1762169249345,0.37885058,107560.0,107550.0,0.4638775]
[1762169250653,0.26467469,107560.0,107550.0,0.4638775]
[1762169252447,0.1504988,107560.0,107550.0,0.4638775]
[1762169252754,0.26467469,107560.0,107550.0,0.4638775]
[1762169255953,0.17168589,107560.0,107550.0,0.4638775]
[1762169256655,0.26467479,107560.0,107550.0,0.4638775]
[1762169257158,0.17168589,107560.0,107550.0,0.4638775]
[1762169257346,0.49340589,107560.0,107550.0,0.4638775]
[1762169257844,0.58639479,107560.0,107550.0,0.4638775]
[1762169258045,0.26467479,107560.0,107550.0,0.4638775]
[1762169258447,0.58639479,107560.0,107550.0,0.4638775]
[1762169258648,0.49340589,107560.0,107550.0,0.4638775]
[1762169258853,0.17168589,107560.0,107550.0,0.4638775]
[1762169259054,0.49340589,107560.0,107550.0,0.4638775]
[1762169259557,0.49340589,107560.0,107550.0,0.5304685]
[1762169260448,0.15902537,107560.0,107550.0,0.5304685]
[1762169260853,0.57369447,107560.0,107550.0,0.4638775]
[1762169261756,0.48070537,107560.0,107550.0,0.4638777]
[1762169262056,0.53379774,107570.0,107560.0,0.01008]
[1762169262253,0.15969537,107570.0,107560.0,0.4638691]
[1762169262455,0.05818,107580.0,107570.0,0.1030604]
[1762169262649,0.05818,107580.0,107570.0,0.4638604]
[1762169262955,0.58354325,107590.0,107580.0,0.1030518]
[1762169263160,0.58354325,107590.0,107580.0,0.42080764]
[1762169263360,0.58354325,107590.0,107580.0,0.51377944]
[1762169263761,0.58354325,107590.0,107580.0,0.42080764]
[1762169264161,0.58354325,107590.0,107580.0,0.51377944]
[1762169264960,0.58654325,107590.0,107580.0,0.51377944]
[1762169265459,0.58654325,107590.0,107580.0,0.42080764]
[1762169265661,0.1513318,107580.0,107570.0,0.83546084]
[1762169265859,0.25284717,107580.0,107570.0,0.83546084]
[1762169266360,0.15987537,107580.0,107570.0,0.51378084]
[1762169266556,0.39406398,107590.0,107580.0,0.1030518]
[1762169266756,0.49557935,107590.0,107580.0,0.51369452]
[1762169267357,0.17389935,107590.0,107580.0,0.51369452]
[1762169267863,0.17089935,107590.0,107580.0,0.83533452]
[1762169268255,0.16889935,107590.0,107580.0,0.83533452]
[1762169269964,0.02220398,107590.0,107580.0,0.83533452]
[1762169270758,0.04428398,107590.0,107580.0,0.83533452]
[1762169271163,0.14579935,107590.0,107580.0,0.83533452]
[1762169271957,0.16889935,107590.0,107580.0,0.83533452]
[1762169272965,0.14579935,107590.0,107580.0,0.83533452]
[1762169273367,0.03473,107590.0,107580.0,0.83533452]
[1762169273661,0.15987537,107600.0,107590.0,0.01008]
[1762169273868,0.15987537,107600.0,107590.0,0.4638432]
[1762169274865,0.17230504,107600.0,107590.0,0.4638432]
[1762169275065,0.17430504,107600.0,107590.0,0.4638432]
[1762169275267,0.26725954,107600.0,107590.0,0.4638432]
[1762169275466,0.17430504,107600.0,107590.0,0.4638432]
[1762169276071,0.26725944,107600.0,107590.0,0.4638432]
[1762169278171,0.17430504,107600.0,107590.0,0.4638432]
[1762169281074,0.10651537,107600.0,107590.0,0.4638432]
[1762169281367,0.005,107600.0,107590.0,0.4638432]
[1762169281576,0.005,107600.0,107590.0,0.56535857]
[1762169281766,0.15987537,107620.0,107600.0,0.0929529]
[1762169282068,0.05836,107620.0,107610.0,1.1360657]
[1762169282668,0.15987537,107620.0,107610.0,1.1360657]
[1762169283274,0.16487537,107620.0,107610.0,1.1360657]
[1762169283572,0.06836,107620.0,107610.0,1.1360657]
[1762169283775,0.16987537,107620.0,107610.0,1.1360657]
[1762169284278,0.17287537,107620.0,107610.0,1.1360657]
[1762169285376,0.013,107620.0,107610.0,1.1360657]
[1762169286665,0.013,107620.0,107610.0,1.46990107]
[1762169287770,0.013,107620.0,107610.0,1.3683857]
[1762169287977,0.013,107620.0,107610.0,1.41822842]
[1762169290274,0.50507606,107650.0,107640.0,0.0929198]
[1762169290275,0.003,107650.0,107640.0,0.0929198]
[1762169290475,0.003,107650.0,107640.0,1.1359598]
[1762169290678,0.003,107650.0,107640.0,1.23747517]
[1762169291180,0.003,107650.0,107640.0,1.1359598]
[1762169291577,0.03884,107650.0,107640.0,1.1409598]
[1762169292470,0.00926787,107670.0,107660.0,0.0929025]
[1762169292679,0.11469537,107680.0,107670.0,0.0928939]
[1762169292880,0.11469537,107680.0,107670.0,0.4536939]
[1762169292881,0.15939537,107680.0,107670.0,0.4536939]
[1762169294583,0.16869074,107680.0,107670.0,0.4536939]
[1762169294773,0.16869074,107680.0,107670.0,0.4586939]
[1762169294971,0.16869074,107680.0,107670.0,0.4596939]
[1762169299980,0.01318,107680.0,107670.0,0.4596939]
[1762169300686,0.003,107690.0,107680.0,0.0928855]
[1762169300880,0.003,107690.0,107680.0,0.7749655]
[1762169300881,0.06146,107690.0,107680.0,0.7749655]
[1762169301079,0.0385,107690.0,107680.0,0.7749655]
[1762169301282,0.04796494,107690.0,107680.0,0.7749655]
[1762169301493,0.06146,107690.0,107680.0,0.7749655]
[1762169301690,0.16297537,107690.0,107680.0,0.3608]
[1762169301987,0.25585227,107690.0,107680.0,0.68208]
[1762169302295,0.16297537,107690.0,107680.0,0.7749655]
[1762169302684,0.16397537,107690.0,107680.0,0.68208]
[1762169302987,0.16397537,107690.0,107680.0,0.7749655]
[1762169305093,0.17320331,107690.0,107680.0,0.7749655]
[1762169306990,0.17320331,107690.0,107680.0,0.7749255]
[1762169308495,0.26608021,107690.0,107680.0,0.7749256]
[1762169309686,0.17320331,107690.0,107680.0,0.7749256]
[1762169310688,0.26608021,107690.0,107680.0,0.7749256]
[1762169311794,0.17320331,107690.0,107680.0,0.7749256]
[1762169312093,0.26608021,107690.0,107680.0,0.7749256]
[1762169313086,0.17320331,107690.0,107680.0,0.7749256]
[1762169313799,0.26608021,107690.0,107680.0,0.7749256]
[1762169314695,0.17320331,107690.0,107680.0,0.7749256]
[1762169316395,0.26608031,107690.0,107680.0,0.7749256]
[1762169316901,0.02181,107680.0,107670.0,0.3608]
[1762169317093,0.25126327,107680.0,107670.0,0.7748538]
[1762169317290,0.25126327,107680.0,107670.0,0.4536938]
[1762169317486,0.15837537,107680.0,107670.0,0.4536938]
[1762169318102,0.25126087,107680.0,107670.0,0.4536938]
[1762169318397,0.25126087,107680.0,107670.0,0.4546938]
[1762169319200,0.15837537,107680.0,107670.0,0.4546938]
[1762169319689,0.15837537,107680.0,107670.0,0.4566938]
[1762169320499,0.17081081,107680.0,107670.0,0.4566938]
[1762169320902,0.05686,107680.0,107670.0,0.4566938]
[1762169321101,0.17081081,107680.0,107670.0,0.4566938]
[1762169321399,0.17081081,107680.0,107670.0,0.50624255]
[1762169332308,0.26369611,107680.0,107670.0,0.50624255]
[1762169332607,0.19276839,107680.0,107670.0,0.50624255]
[1762169332809,0.17081081,107680.0,107670.0,0.50624255]
[1762169333896,0.39211794,107690.0,107680.0,0.0928853]
[1762169334207,0.52802638,107690.0,107680.0,0.4536853]
[1762169334407,0.19771844,107690.0,107680.0,0.82431405]
[1762169334610,0.17576081,107690.0,107680.0,0.82431405]
[1762169334805,0.15288081,107690.0,107680.0,0.82431405]
[1762169335109,0.17676081,107690.0,107680.0,0.82431405]
[1762169335308,0.18600919,107690.0,107680.0,0.82431405]
[1762169335810,0.30066521,107690.0,107680.0,0.82431405]
[1762169337302,0.27888579,107690.0,107680.0,0.82431405]
[1762169338110,0.27888579,107690.0,107680.0,0.7747653]
[1762169338906,0.27888579,107690.0,107680.0,0.7747654]
[1762169339103,0.27888579,107690.0,107680.0,0.4536854]
[1762169339413,0.27888579,107690.0,107680.0,0.7747654]
[1762169339612,0.18600919,107690.0,107680.0,0.7747654]
[1762169341218,0.27888589,107690.0,107680.0,0.7747654]
[1762169341707,0.27888589,107690.0,107680.0,0.4536854]
[1762169342712,0.27888589,107690.0,107680.0,0.5197504]
[1762169343214,0.27888589,107690.0,107680.0,0.4536854]
[1762169343809,0.18600919,107690.0,107680.0,0.4536854]
[1762169344120,0.18600919,107690.0,107680.0,0.5197504]
[1762169345621,0.11795081,107690.0,107680.0,0.5197504]
[1762169346317,0.17696081,107690.0,107680.0,0.5197504]
[1762169347406,0.004,107690.0,107680.0,0.56763621]
[1762169347714,0.13584585,107710.0,107700.0,0.0928681]
[1762169347715,0.18089585,107710.0,107700.0,0.0928681]
[1762169347919,0.18089585,107710.0,107700.0,0.8144681]
[1762169348618,0.06694504,107710.0,107700.0,0.8144681]
[1762169348812,0.03491,107710.0,107700.0,0.92841891]
[1762169349006,0.17174081,107710.0,107700.0,0.99475208]
[1762169349220,0.17174081,107710.0,107700.0,0.8144681]
[1762169350223,0.17874081,107710.0,107700.0,0.8144681]
[1762169351829,0.06479,107710.0,107700.0,0.8144681]
[1762169352018,0.17874081,107710.0,107700.0,0.8144681]
[1762169353323,0.12095081,107710.0,107700.0,0.92841891]
[1762169353524,0.007,107710.0,107700.0,0.99475208]
[1762169355430,0.12095081,107710.0,107700.0,0.99475208]
[1762169356332,0.007,107710.0,107700.0,0.99475208]
[1762169356530,0.007,107710.0,107700.0,1.10870289]
[1762169356720,0.13091081,107730.0,107700.0,1.35770664]
[1762169356927,0.17542081,107730.0,107720.0,0.86406421]
[1762169357323,0.17542081,107730.0,107720.0,0.8144507]
[1762169357628,0.17542081,107730.0,107720.0,0.92840151]
[1762169357928,0.17542081,107730.0,107720.0,0.97797777]
[1762169358122,0.17542081,107730.0,107720.0,0.86402696]
[1762169359125,0.17542081,107730.0,107720.0,0.89706651]
[1762169359427,0.17542081,107730.0,107720.0,1.21798651]
[1762169359624,0.17942081,107730.0,107720.0,1.21798651]
[1762169359828,0.27226301,107730.0,107720.0,1.21798651]
[1762169360737,0.17942081,107730.0,107720.0,1.21798651]
[1762169360934,0.06547,107730.0,107720.0,1.21798651]
[1762169361137,0.17942081,107730.0,107720.0,1.21798651]
[1762169361633,0.17942081,107730.0,107720.0,1.16841025]
[1762169361847,0.27226301,107730.0,107720.0,0.75463955]
[1762169362032,0.27226301,107730.0,107720.0,1.16841035]
[1762169363236,0.27226301,107730.0,107720.0,0.84749035]
[1762169363436,0.38621382,107730.0,107720.0,1.16837035]
[1762169366134,0.38621382,107730.0,107720.0,0.84749035]
[1762169366538,0.1583122,107730.0,107720.0,0.84749035]
[1762169366735,0.38621382,107730.0,107720.0,0.84749035]
[1762169367245,0.38621382,107730.0,107720.0,0.48669035]
[1762169367432,0.38221382,107730.0,107720.0,0.48669035]
[1762169367738,0.38221382,107730.0,107720.0,0.49169035]
[1762169367940,0.38221382,107730.0,107720.0,0.4596508]
[1762169369334,0.38221382,107730.0,107720.0,0.006]
[1762169369540,0.38221382,107730.0,107720.0,0.0988508]
[1762169369842,0.38221382,107730.0,107720.0,0.006]
[1762169371045,0.38221382,107730.0,107720.0,0.0988508]
[1762169371539,0.38221382,107730.0,107720.0,0.006]
[1762169372641,0.38221382,107730.0,107720.0,0.0988508]
[1762169373835,0.38221382,107730.0,107720.0,0.4596508]
[1762169377345,0.38221382,107730.0,107720.0,0.49269035]
[1762169377537,0.38221382,107730.0,107720.0,0.3668]
[1762169377847,0.38221382,107730.0,107720.0,0.006]
[1762169378146,0.38221382,107730.0,107720.0,0.03903955]
[1762169378447,0.38221382,107730.0,107720.0,0.13189035]
[1762169378647,0.38221382,107730.0,107720.0,0.03903955]
[1762169378946,0.74301382,107730.0,107720.0,0.03903955]
[1762169379144,0.74301382,107730.0,107720.0,0.006]
[1762169379345,0.74301382,107730.0,107710.0,0.08261581]
[1762169379346,0.1515409,107720.0,107710.0,0.08261581]
[1762169379539,0.58633171,107720.0,107710.0,0.03303955]
[1762169379741,0.70028252,107720.0,107710.0,0.03303955]
[1762169380942,0.70028252,107720.0,107710.0,0.03403955]
[1762169381344,0.70028252,107720.0,107710.0,0.03303955]
[1762169382244,0.1501694,107710.0,107700.0,0.53627711]
[1762169382450,0.25141556,107710.0,107700.0,0.53627711]
[1762169382638,0.25141556,107710.0,107700.0,0.50323756]
[1762169382843,0.25141556,107710.0,107700.0,0.53637086]
[1762169383651,0.25341556,107710.0,107700.0,0.53637086]
[1762169384051,0.25341556,107710.0,107700.0,0.53737086]
[1762169384952,0.1521694,107710.0,107700.0,0.44450956]
[1762169385254,0.25341556,107710.0,107700.0,0.44450956]
[1762169385452,0.25341556,107710.0,107700.0,0.3949333]
[1762169385651,0.25341556,107710.0,107700.0,0.4878014]
[1762169385852,0.25341556,107710.0,107700.0,0.53737766]
[1762169388051,0.25341556,107710.0,107700.0,0.50424436]
[1762169388650,0.57425556,107710.0,107700.0,0.50424436]
[1762169389661,0.48139616,107710.0,107700.0,0.50424436]
[1762169389961,0.57425556,107710.0,107700.0,0.50424436]
[1762169390157,0.48139616,107710.0,107700.0,0.50424436]
[1762169391870,0.16055616,107710.0,107700.0,0.50424436]
[1762169395976,0.25341556,107710.0,107700.0,0.50424436]
[1762169396770,0.25341556,107710.0,107700.0,0.50524436]
[1762169397274,0.16055616,107710.0,107700.0,0.50524436]
[1762169397463,0.15855616,107710.0,107700.0,0.7765081]
[1762169397660,0.15855616,107710.0,107700.0,0.7805081]
[1762169399270,0.25141556,107710.0,107700.0,0.7805081]
[1762169400163,0.15855616,107710.0,107700.0,0.7805081]
[1762169400364,0.15855616,107710.0,107700.0,0.84665944]
[1762169401474,0.25141536,107710.0,107700.0,0.84665944]
[1762169401673,0.25141536,107710.0,107700.0,0.7805081]
[1762169402076,0.25141536,107710.0,107700.0,0.84665944]
[1762169402873,0.25141536,107710.0,107700.0,0.7805081]
[1762169403375,0.25141536,107710.0,107700.0,0.84665944]
[1762169403882,0.25141536,107710.0,107700.0,0.3668]
[1762169404578,0.15855616,107710.0,107700.0,0.4596678]
[1762169404972,0.15855616,107710.0,107700.0,0.52581914]
[1762169405672,0.15855616,107710.0,107700.0,0.4596678]
[1762169406675,0.25141536,107710.0,107700.0,0.4596678]
[1762169406878,0.1501692,107710.0,107700.0,0.4596678]
[1762169407178,0.15855616,107710.0,107700.0,0.4596678]
[1762169408976,0.03539,107710.0,107700.0,0.4596678]
[1762169409175,0.11512616,107720.0,107710.0,0.0928592]
[1762169409379,0.33776,107730.0,107720.0,0.0928506]
[1762169409380,0.16262616,107730.0,107720.0,0.0928506]
[1762169409577,0.16262616,107730.0,107720.0,0.4536506]
[1762169410178,0.06138,107730.0,107720.0,0.4536506]
[1762169410581,0.003,107730.0,107720.0,0.51998303]
[1762169410980,0.003,107730.0,107720.0,0.4536506]
[1762169411171,0.005,107730.0,107720.0,0.53686752]
[1762169411785,0.005,107730.0,107720.0,0.63811368]
[1762169412172,0.15851616,107750.0,107730.0,0.0928395]
[1762169412372,0.05727,107750.0,107740.0,1.18480213]
[1762169412774,0.12401359,107760.0,107740.0,1.1351933]
[1762169412980,0.05727,107760.0,107750.0,0.50322388]
[1762169413188,0.03499,107760.0,107750.0,0.50322388]
[1762169413583,0.05727,107760.0,107750.0,0.50322388]
[1762169414188,0.05727,107760.0,107750.0,0.41039918]
[1762169414189,0.25633226,107760.0,107750.0,0.41039918]
[1762169414371,0.35757842,107760.0,107750.0,0.71452493]
[1762169414573,0.25633226,107760.0,107750.0,0.71452493]
[1762169414778,0.26553568,107760.0,107750.0,0.48662963]
[1762169417982,0.1501847,107750.0,107740.0,0.3608]
[1762169418291,0.25143086,107750.0,107740.0,0.3608]
[1762169418685,0.1501934,107740.0,107730.0,0.3608]
[1762169418978,0.25143956,107740.0,107730.0,0.453642]
[1762169420483,0.25143956,107740.0,107730.0,0.455642]
[1762169420988,0.15860616,107740.0,107730.0,0.455642]
[1762169421489,0.25143926,107740.0,107730.0,0.455642]
[1762169421891,0.15860616,107740.0,107730.0,0.455642]
[1762169422188,0.25143926,107740.0,107730.0,0.455642]
[1762169427995,0.25143926,107740.0,107730.0,0.48864693]
[1762169428998,0.25143926,107740.0,107730.0,0.48864663]
[1762169429196,0.25143926,107740.0,107730.0,0.39580493]
[1762169430902,0.57207926,107740.0,107730.0,0.39580493]
[1762169431597,0.05952,107730.0,107720.0,0.03300493]
[1762169431898,0.1523704,107720.0,107710.0,0.03300493]
[1762169432100,0.67550272,107720.0,107710.0,0.39380493]
[1762169432289,0.67550272,107720.0,107710.0,0.3608]
[1762169432999,0.1523789,107710.0,107700.0,0.39380493]
[1762169433203,0.25362506,107710.0,107700.0,0.39380493]
[1762169433701,0.16160809,107710.0,107700.0,0.48667253]
[1762169433893,0.16999535,107710.0,107700.0,0.48667253]
[1762169434094,0.26285435,107710.0,107700.0,0.53627171]
[1762169434700,0.26285435,107710.0,107700.0,0.48867253]
[1762169434903,0.58349435,107710.0,107700.0,0.48867253]
[1762169435298,0.58349435,107710.0,107700.0,0.39580493]
[1762169435495,0.26285435,107710.0,107700.0,0.39580493]
[1762169435695,0.58353435,107710.0,107700.0,0.49167253]
[1762169438104,0.58353435,107710.0,107700.0,0.54127171]
[1762169439005,0.58353435,107710.0,107700.0,0.44840411]
[1762169439210,0.58353435,107710.0,107700.0,0.54127231]
[1762169442307,0.71008951,107710.0,107700.0,0.49167313]
[1762169442608,0.71008951,107710.0,107700.0,0.54127231]
[1762169443104,0.71008951,107710.0,107700.0,0.49167313]
[1762169443304,0.71008951,107710.0,107700.0,0.54127231]
[1762169443906,0.38940951,107710.0,107700.0,0.54127231]
[1762169444212,0.71008951,107710.0,107700.0,0.54127231]
[1762169444609,0.38940951,107710.0,107700.0,0.54127231]
[1762169444917,0.71008951,107710.0,107700.0,0.54127231]
[1762169445420,0.71008951,107710.0,107700.0,0.44840411]
[1762169445604,0.71008951,107710.0,107700.0,0.54127211]
[1762169447407,0.71008951,107710.0,107700.0,0.44844305]
[1762169447614,0.71008951,107710.0,107700.0,0.54131105]
[1762169448012,0.71008951,107710.0,107700.0,0.39884387]
[1762169449407,0.71008951,107710.0,107700.0,0.49171187]
[1762169450711,0.71008951,107710.0,107700.0,0.39884387]
[1762169451509,0.71008951,107710.0,107700.0,0.49171177]
[1762169452215,0.71008951,107710.0,107700.0,0.54131095]
[1762169456318,0.71008951,107710.0,107700.0,0.50826708]
[1762169456922,0.71008951,107710.0,107700.0,0.41539918]
[1762169457507,0.38940951,107710.0,107700.0,0.50826718]
[1762169457712,0.71008951,107710.0,107700.0,0.50826718]
[1762169459821,0.61723051,107710.0,107700.0,0.50826718]
[1762169460021,0.18264985,107710.0,107700.0,0.458668]
[1762169460621,0.27550915,107710.0,107700.0,0.458668]
[1762169460819,0.27550915,107710.0,107700.0,0.3658]
[1762169461321,0.27550915,107710.0,107700.0,0.524813]
[1762169461520,0.38940981,107710.0,107700.0,0.524813]
[1762169461824,0.27550915,107710.0,107700.0,0.524813]
[1762169462122,0.27550915,107710.0,107700.0,0.845493]
[1762169462714,0.15844985,107710.0,107700.0,0.7793479]
[1762169463020,0.12739066,107710.0,107700.0,0.95957195]
[1762169463223,0.17149066,107710.0,107700.0,0.7793479]
[1762169463722,0.17149066,107710.0,107700.0,0.8456526]
[1762169463923,0.03532,107730.0,107710.0,0.0928593]
[1762169464123,0.05754,107740.0,107730.0,0.0928421]
[1762169464420,0.14917066,107740.0,107730.0,0.51984663]
[1762169464819,0.01344,107740.0,107730.0,0.63374729]
[1762169465024,0.17194066,107750.0,107740.0,0.0928335]
[1762169465219,0.14967066,107750.0,107740.0,0.95437869]
[1762169465725,0.14967066,107750.0,107740.0,0.84047803]
[1762169466125,0.14967066,107750.0,107740.0,0.95437869]
[1762169466326,0.14967066,107750.0,107740.0,0.88817416]
[1762169466521,0.14967066,107750.0,107740.0,0.7742735]
[1762169466820,0.14967066,107750.0,107740.0,0.95437869]
[1762169467026,0.14967066,107750.0,107740.0,0.84347803]
[1762169467223,0.14967066,107750.0,107740.0,0.7772735]
[1762169467627,0.17194066,107750.0,107740.0,0.7772735]
[1762169467826,0.17194066,107750.0,107740.0,0.83076545]
[1762169468021,0.17194066,107750.0,107740.0,0.86376008]
[1762169468216,0.17194066,107750.0,107740.0,0.81426813]
[1762169468625,0.05804,107750.0,107740.0,0.81426813]
[1762169468926,0.17194066,107750.0,107740.0,0.81426813]
[1762169469320,0.14967066,107750.0,107740.0,0.92816879]
[1762169469524,0.17194066,107760.0,107750.0,0.0928248]
[1762169469824,0.17194066,107760.0,107750.0,0.48661943]
[1762169470128,0.17194066,107760.0,107750.0,0.4536248]
[1762169471130,0.17194066,107760.0,107750.0,0.4576248]
[1762169473220,0.05804,107760.0,107750.0,0.4576248]
[1762169473420,0.17194066,107760.0,107750.0,0.4576248]
[1762169474129,0.26475696,107760.0,107750.0,0.4576248]
[1762169474432,0.17194066,107760.0,107750.0,0.4576248]
[1762169475828,0.17488066,107770.0,107760.0,0.0928162]
[1762169476034,0.18406557,107770.0,107760.0,0.7741362]
[1762169476825,0.07016491,107770.0,107760.0,0.7741362]
[1762169477027,0.18406557,107770.0,107760.0,0.7741362]
[1762169477930,0.27687317,107770.0,107760.0,0.7741362]
[1762169478433,0.26760317,107770.0,107760.0,0.7882162]
[1762169480737,0.38150383,107770.0,107760.0,0.3608]
[1762169481035,0.38150383,107770.0,107760.0,0.69536]
[1762169481238,0.17479557,107770.0,107760.0,0.7881762]
[1762169481625,0.26760317,107770.0,107760.0,0.7881762]
[1762169481825,0.26760317,107770.0,107760.0,0.7881763]
[1762169482335,0.26760317,107770.0,107760.0,0.4676963]
[1762169483130,0.26760317,107770.0,107750.0,0.37488]
[1762169483131,0.1495862,107760.0,107750.0,0.37488]
[1762169483330,0.37738752,107760.0,107750.0,0.37488]
[1762169483927,0.28457132,107760.0,107750.0,0.4677048]
[1762169484529,0.28457132,107760.0,107750.0,0.4717048]
[1762169484725,0.05677,107760.0,107750.0,0.37888]
[1762169485038,0.37738752,107760.0,107750.0,0.37888]
[1762169485236,0.37738752,107760.0,107750.0,0.37184]
[1762169485431,0.69786752,107760.0,107750.0,0.01104]
[1762169485645,1.05866752,107760.0,107750.0,0.004]
[1762169486930,0.8308662,107760.0,107750.0,0.0948248]
[1762169487131,1.05866752,107760.0,107750.0,0.002]
[1762169488040,0.69886752,107760.0,107750.0,0.0928248]
[1762169488441,0.69882752,107760.0,107750.0,0.1069048]
[1762169488642,0.37838752,107760.0,107750.0,0.1069048]
[1762169488845,0.69782752,107760.0,107750.0,0.1069048]
[1762169489040,0.70182752,107760.0,107750.0,0.1069048]
[1762169489238,0.05787,107750.0,107740.0,0.39379463]
[1762169489434,0.1507034,107740.0,107730.0,0.40083463]
[1762169489742,0.37850472,107740.0,107730.0,0.50071663]
[1762169489937,0.37850472,107740.0,107730.0,0.467722]
[1762169490144,0.69894472,107740.0,107730.0,0.467722]
[1762169490336,0.58504406,107740.0,107730.0,0.467722]
[1762169490937,0.58504406,107740.0,107730.0,0.108922]
[1762169491236,0.69894472,107740.0,107730.0,0.50271663]
[1762169491443,0.69894472,107740.0,107730.0,0.50071663]
[1762169491646,0.69994472,107740.0,107730.0,0.50071663]
[1762169494344,0.58604406,107740.0,107730.0,0.50071663]
[1762169494739,0.69994472,107740.0,107730.0,0.50071663]
[1762169494946,0.58604406,107740.0,107730.0,0.50071663]
[1762169495334,0.69994472,107740.0,107730.0,0.39379463]
[1762169495539,0.1507121,107730.0,107720.0,0.44328658]
[1762169495744,0.37851342,107730.0,107720.0,0.50072533]
[1762169496746,0.37851342,107730.0,107720.0,0.50272533]
[1762169497143,0.37851342,107730.0,107720.0,0.50472533]
[1762169497443,0.28567132,107730.0,107720.0,0.50472533]
[1762169497648,0.60615132,107730.0,107720.0,0.50272533]
[1762169497843,0.60715132,107730.0,107720.0,0.50072533]
[1762169498049,0.17277066,107730.0,107720.0,0.55021728]
[1762169499548,0.17277066,107730.0,107720.0,0.51722265]
[1762169499752,0.11490066,107730.0,107720.0,0.64983589]
[1762169500055,0.11390066,107730.0,107720.0,0.64983589]
[1762169500249,0.17177066,107740.0,107730.0,0.1069219]
[1762169500443,0.17177066,107740.0,107730.0,0.55020167]
[1762169500849,0.17177066,107740.0,107730.0,0.51720976]
[1762169501251,0.17177066,107740.0,107730.0,0.83768976]
[1762169501455,0.11390066,107740.0,107730.0,0.95863042]
[1762169501859,0.11390066,107740.0,107730.0,0.7952419]
[1762169503156,0.11390066,107740.0,107730.0,0.7972419]
[1762169503956,0.11390066,107740.0,107730.0,0.7992419]
[1762169504366,0.15789534,107750.0,107740.0,0.01408]
[1762169504562,0.15789534,107750.0,107740.0,0.5171941]
[1762169505269,0.05675,107750.0,107740.0,0.5171941]
[1762169505562,0.15789534,107750.0,107740.0,0.5171941]
[1762169506162,0.25072004,107750.0,107740.0,0.5171941]
[1762169506467,0.25172004,107750.0,107740.0,0.5171941]
[1762169507167,0.15889534,107750.0,107740.0,0.5171941]
[1762169508058,0.15889534,107750.0,107740.0,0.55019206]
[1762169508665,0.05775,107750.0,107740.0,0.55019206]
[1762169508869,0.16488534,107750.0,107740.0,0.55019206]
[1762169509070,0.16488534,107750.0,107740.0,0.5171941]
[1762169509281,0.00699,107750.0,107740.0,0.5171941]
[1762169510877,0.00699,107750.0,107740.0,0.4677133]
[1762169511174,0.00699,107750.0,107740.0,0.53391783]
[1762169511879,0.00699,107750.0,107740.0,0.54334891]
[1762169513375,0.00699,107750.0,107740.0,0.53391783]
[1762169513678,0.0286,107750.0,107740.0,0.53391783]
[1762169514179,0.00699,107750.0,107740.0,0.4677133]
[1762169514374,0.00699,107750.0,107740.0,0.53391783]
[1762169516175,0.00699,107750.0,107740.0,0.54332776]
[1762169516689,0.00699,107750.0,107740.0,0.53391783]
[1762169517484,0.00699,107750.0,107740.0,0.4677133]
[1762169518077,0.00699,107750.0,107740.0,0.53391783]
[1762169518476,0.06355,107750.0,107740.0,0.53391783]
[1762169518677,0.0286,107750.0,107740.0,0.53391783]
[1762169518876,0.00699,107750.0,107740.0,0.53391783]